[Event "4NCL 2023-2024"]
[Site "Daventry"]
[Date "2024.05.04"]
[Round "9.46"]
[White "Mirzoeva, Elmira"]
[Black "Hansen, Hans-Peter"]
[Result "1/2-1/2"]
[ECO "D55"]
[WhiteElo "2252"]
[BlackElo "2167"]
[Annotator "TA"]
[PlyCount "165"]
[EventDate "2023.11.11"]
[EventType "team-tourn"]
[EventCountry "ENG"]
[SourceTitle "playchess.com"]
[Source "ChessBase"]
[SourceQuality "1"]
[TimeControl "40/6000+30:3000+30"]

{[%evp 70,165,19,19,31,16,40,7,7,7,7,7,7,7,11,11,11,0,12,12,18,12,18,12,12,12,12,12,12,12,12,12,12,12,12,12,12,12,12,12,12,0,12,12,12,12,12,0,12,11,12,12,12,12,12,12,12,12,57,57,57,7,7,7,7,7,7,7,7,0,0,0,0,0,0,0,0,0,0,0,0,0,0,0,0,0,0,0,0,0,4,0,0,0,0,0,0,0]} 1. d4 {[%emt 0:00:03]} Nf6 {[%emt 0:02:05]} 2. c4 {[%emt 0:01:03]} e6 {[%emt 0:00:10]} 3. Nf3 {[%emt 0:00:27]} d5 {[%emt 0:00:17]} 4. Nc3 {[%emt 0:00:22]} Be7 {[%emt 0:01:16]} 5. Bg5 {[%emt 0:00:44]} O-O {[%emt 0:00:08]} 6. e3 {[%emt 0:00:32]} b6 {[%emt 0:00:41]} 7. Rc1 {[%emt 0:03:41]} Bb7 {[%emt 0:00:33]} 8. cxd5 {[%emt 0:01:07]} Nxd5 {[%emt 0:00:25]} 9. Nxd5 {[%emt 0:04:34]} exd5 {[%emt 0:00:54]} 10. Bxe7 {[%emt 0:02:11]} Qxe7 {[%emt 0:00:10]} 11. Qc2 {[%emt 0:05:18]} c5 {[%emt 0:09:49]} 12. Bd3 {[%emt 0:06:17]} g6 {[%emt 0:00:40]} 13. dxc5 {[%emt 0:01:28]} Rc8 {[%emt 0:01:11]} 14. b4 {[%emt 0:05:43]} a5 {[%emt 0:14:25]} 15. b5 {[%emt 0:08:03]} Rxc5 {[%emt 0:08:59]} 16. Qb2 {[%emt 0:01:10]} Nd7 {[%emt 0:10:55]} 17. O-O {[%emt 0:03:46]} Rac8 {[%emt 0:00:36]} 18. h3 {[%emt 0:18:40]} f6 {[%emt 0:05:21]} 19. Rfd1 {[%emt 0:19:00]} Ne5 {[%emt 0:06:34]} 20. Be2 {[%emt 0:08:59]} Nc4 {[%emt 0:04:49]} 21. Qd4 {[%emt 0:01:38]} Ne5 {[%emt 0:06:55]} 22. Rxc5 {[%emt 0:01:44]} Rxc5 {[%emt 0:00:58]} 23. Nd2 {[%emt 0:01:00]} Nd7 {[%emt 0:02:19]} 24. Nb3 {[%emt 0:02:16]} Rc2 {[%emt 0:02:28]} 25. Bf3 {[%emt 0:00:58]} Qe5 {[%emt 0:07:45]} 26. Bxd5+ {[%emt 0:01:09]} Bxd5 {[%emt 0:00:29]} 27. Qxd5+ {[%emt 0:00:03]} Qxd5 {[%emt 0:00:06]} 28. Rxd5 {[%emt 0:00:05]} Ne5 {[%emt 0:05:10]} 29. Rd2 {[%emt 0:00:34]} Rc3 {[%emt 0:00:06]} 30. f4 {[%emt 0:09:22]} Nd3 {[%emt 0:01:13]} 31. Nd4 {[%emt 0:01:58]} Nb4 {[%emt 0:02:39]} 32. e4 {[%emt 0:01:02]} Ra3 {[%emt 0:02:08]} 33. Nc6 {[%emt 0:00:55]} Rxa2 {[%emt 0:02:12]} 34. Rd8+ {[%emt 0:00:54]} Kf7 {[%emt 0:00:38]} 35. Rb8 {[%emt 0:00:32]} Nxc6 {[%emt 0:06:21]} 36. bxc6 {[%emt 0:00:05]} Rc2 {[%emt 0:00:07]} 37. Rxb6 {[%emt 0:00:21]} a4 {[%emt 0:00:31]} 38. Rb7+ {[%emt 0:01:09]} Ke6 {[%emt 0:00:15]} 39. Rxh7 {[%emt 0:00:06]} Rxc6 {[%emt 0:00:43]} 40. Ra7 {[%emt 0:00:54]} Rc4 {[%emt 0:00:12]} 41. Ra6+ {[%emt 0:00:38]} Kf7 {[%emt 0:03:16]} 42. e5 {[%emt 0:01:56]} Rxf4 {[%emt 0:02:53]} 43. exf6 {[%emt 0:00:17]} Rxf6 {[%emt 0:00:05]} 44. Rxa4 {[%emt 0:00:06]} Rb6 {[%emt 0:02:01]} 45. Kf2 {[%emt 0:00:27]} Rb3 {[%emt 0:00:17]} 46. Rf4+ {[%emt 0:00:38]} Kg7 {[%emt 0:00:05]} 47. Rf3 {[%emt 0:00:06]} Rb2+ {[%emt 0:00:03]} 48. Kg3 {[%emt 0:00:02]} g5 {[%emt 0:01:34]} 49. Ra3 {[%emt 0:00:39]} Kg6 {[%emt 0:01:24]} 50. Kf3 {[%emt 0:00:12]} Rb4 {[%emt 0:50:39]} 51. Ra6+ {[%emt 0:00:16]} Kf5 {[%emt 0:00:00]} 52. Ra5+ {[%emt 0:04:55]} Kg6 {[%emt 0:00:00]} 53. Re5 {[%emt 0:00:37]} Rf4+ {[%emt 0:00:00]} 54. Kg3 {[%emt 0:00:25]} Ra4 {[%emt 0:00:00]} 55. Kf3 {[%emt 0:02:27]} Rf4+ {[%emt 0:00:00]} 56. Ke3 {[%emt 0:00:04]} Ra4 {[%emt 0:00:00]} 57. Rd5 {[%emt 0:00:05]} Ra2 {[%emt 0:00:00]} 58. Rd2 {[%emt 0:02:03]} Ra4 {[%emt 0:00:00]} 59. g3 {[%emt 0:01:18]} Kf5 {[%emt 0:00:00]} 60. Rd5+ {[%emt 0:00:29]} Kf6 {[%emt 0:00:00]} 61. Kf3 {[%emt 0:01:17]} Rb4 {[%emt 0:00:00]} 62. Ra5 {[%emt 0:01:10]} Kg6 {[%emt 0:00:00]} 63. Re5 {[%emt 0:00:39]} g4+ {[%emt 0:00:00]} 64. hxg4 {[%emt 0:00:26]} Rb1 {[%emt 0:00:00]} 65. g5 {[%emt 0:02:14]} (65. Kg2 $14) 65... Rb3+ $11 {[%emt 0:00:00]} 66. Kg4 {[%emt 0:00:11]} Rb4+ {[%emt 0:00:00]} 67. Kh3 {[%emt 0:00:03]} Ra4 {[%emt 0:00:00]} 68. Rb5 {[%emt 0:00:23]} Rc4 {[%emt 0:00:00]} 69. g4 {[%emt 0:00:31]} Rc1 {[%emt 0:00:00]} 70. Ra5 {[%emt 0:01:00]} Rb1 {[%emt 0:00:00]} 71. Kh4 {[%emt 0:00:57]} Rh1+ {[%emt 0:00:00]} 72. Kg3 {[%emt 0:00:03]} Rb1 {[%emt 0:00:00]} 73. Rf5 {[%emt 0:01:04]} Ra1 {[%emt 0:00:00]} 74. Re5 {[%emt 0:00:12]} Rb1 {[%emt 0:00:00]} 75. Kf4 {[%emt 0:00:08]} Rf1+ {[%emt 0:00:00]} 76. Kg3 {[%emt 0:00:02]} Ra1 {[%emt 0:00:00]} 77. Rf5 {[%emt 0:00:02]} Rb1 {[%emt 0:00:00]} 78. Kf4 {[%emt 0:00:04]} Rb4+ {[%emt 0:00:00]} 79. Kf3 {[%emt 0:00:11]} Rb1 {[%emt 0:00:00]} 80. Rf4 {[%emt 0:00:18]} Rb3+ {[%emt 0:00:00]} 81. Kg2 {[%emt 0:00:14]} Kxg5 {[%emt 0:00:00]} 82. Ra4 {[%emt 0:00:03]} Rc3 {[%emt 0:00:00]} 83. Rb4 {[%emt 0:00:23]} 1/2-1/2

[Event "4NCL 2023-2024"]
[Site "Daventry"]
[Date "2024.05.04"]
[Round "9.47"]
[White "Manley, Jon P"]
[Black "Kazarian, Anna-Maja"]
[Result "1-0"]
[ECO "C14"]
[WhiteElo "2165"]
[BlackElo "2182"]
[Annotator "RC"]
[PlyCount "99"]
[EventDate "2023.11.11"]
[EventType "team-tourn"]
[EventCountry "ENG"]
[SourceTitle "playchess.com"]
[Source "ChessBase"]
[SourceQuality "1"]
[TimeControl "40/6000+30:3000+30"]

1. e4 {[%emt 0:00:04]} e6 {[%emt 0:00:04]} 2. d4 {[%emt 0:00:20]} d5 {[%emt 0:00:04]} 3. Nc3 {[%emt 0:00:40]} Nf6 {[%emt 0:00:07]} 4. Bg5 {[%emt 0:00:38]} Be7 {[%emt 0:00:20]} 5. e5 {[%emt 0:01:34]} Nfd7 {[%emt 0:00:07]} 6. h4 {[%emt 0:01:20]} Bxg5 {[%emt 0:00:36]} 7. hxg5 {[%emt 0:00:06]} Qxg5 {[%emt 0:00:04]} 8. Nf3 {[%emt 0:00:51]} Qe7 {[%emt 0:00:40]} 9. Qd3 {[%emt 0:03:07]} h6 {[%emt 0:00:46]} 10. O-O-O {[%emt 0:12:16]} a6 {[%emt 0:01:01]} 11. Qe3 {[%emt 0:02:13]} c5 {[%emt 0:06:53]} 12. dxc5 {[%emt 0:03:17]} Qxc5 {[%emt 0:02:35]} 13. Nd4 {[%emt 0:07:49]} Nc6 {[%emt 0:05:17]} 14. f4 {[%emt 0:03:54]} b5 {[%emt 0:06:36]} 15. f5 {[%emt 0:06:35]} Bb7 {[%emt 0:29:30]} 16. Rh4 {[%emt 0:29:40]} O-O-O {[%emt 0:11:33]} 17. Qg3 {[%emt 0:01:17]} Nxd4 {[%emt 0:05:24]} 18. Rhxd4 {[%emt 0:04:58]} Rhg8 {[%emt 0:01:35]} 19. Be2 {[%emt 0:06:57]} Qe7 {[%emt 0:06:15]} 20. Bh5 {[%emt 0:03:48]} Nb6 {[%emt 0:11:50]} 21. Rf1 {[%emt 0:08:23]} exf5 {[%emt 0:01:39]} 22. Be2 {[%emt 0:02:48]} g6 {[%emt 0:01:55]} 23. Kb1 {[%emt 0:01:54]} Rge8 {[%emt 0:05:27]} 24. Qd3 {[%emt 0:03:36]} Qxe5 {[%emt 0:03:54]} 25. Bf3 {[%emt 0:00:40]} Qe3 {[%emt 0:01:38]} 26. Qd1 {[%emt 0:00:44]} Re5 {[%emt 0:01:04]} 27. a4 {[%emt 0:00:41]} bxa4 {[%emt 0:03:25]} 28. Nxa4 {[%emt 0:00:31]} Nxa4 {[%emt 0:00:33]} 29. Rxa4 {[%emt 0:00:01]} Qb6 {[%emt 0:01:31]} 30. Rd4 {[%emt 0:00:26]} Bc6 {[%emt 0:01:52]} 31. Qd2 {[%emt 0:00:22]} g5 {[%emt 0:01:07]} 32. g3 {[%emt 0:01:25]} g4 {[%emt 0:00:17]} 33. Bh1 {[%emt 0:00:25]} Bb5 {[%emt 0:00:31]} 34. Rd1 {[%emt 0:01:06]} Bc4 {[%emt 0:00:41]} 35. Qc3 {[%emt 0:00:56]} Kb8 {[%emt 0:00:30]} 36. Rxc4 {[%emt 0:00:39]} Re3 {[%emt 0:00:34]} 37. Qb4 {[%emt 0:02:04]} Qxb4 {[%emt 0:00:22]} 38. Rxb4+ {[%emt 0:00:01]} Kc7 {[%emt 0:00:10]} 39. Bxd5 {[%emt 0:00:30]} Rd6 {[%emt 0:00:51]} 40. Rb7+ {[%emt 0:00:50]} Kd8 {[%emt 0:00:13]} 41. Rxf7 {[%emt 0:50:28]} Re5 {[%emt 0:50:06]} 42. c4 {[%emt 0:00:08]} Ke8 {[%emt 0:00:11]} 43. Rh7 {[%emt 0:01:09]} Kf8 {[%emt 0:00:00]} 44. Rh1 {[%emt 0:00:00]} Rb6 {[%emt 0:00:00]} 45. R1xh6 {[%emt 0:00:00]} Re1+ {[%emt 0:00:00]} 46. Ka2 {[%emt 0:00:00]} Rxh6 {[%emt 0:00:00]} 47. Rxh6 {[%emt 0:00:00]} Ke7 {[%emt 0:00:00]} 48. Rxa6 {[%emt 0:00:00]} Re3 {[%emt 0:00:00]} 49. Ra3 {[%emt 0:00:00]} f4 {[%emt 0:00:00]} 50. gxf4 {[%emt 0:00:00]} 1-0

[Event "4NCL 2023-2024"]
[Site "Daventry"]
[Date "2024.05.04"]
[Round "9.48"]
[White "Josse, Mark"]
[Black "Hariharan, Shambavi"]
[Result "1/2-1/2"]
[ECO "D13"]
[WhiteElo "2153"]
[BlackElo "1887"]
[Annotator "RC"]
[PlyCount "104"]
[EventDate "2023.11.11"]
[EventType "team-tourn"]
[EventCountry "ENG"]
[SourceTitle "playchess.com"]
[Source "ChessBase"]
[SourceQuality "1"]
[TimeControl "40/6000+30:3000+30"]

1. c4 {[%emt 0:00:17]} c6 {[%emt 0:00:24]} 2. d4 {[%emt 0:00:27]} d5 {[%emt 0:00:08]} 3. Nf3 {[%emt 0:00:17]} Nf6 {[%emt 0:00:16]} 4. Nc3 {[%emt 0:00:41]} e6 {[%emt 0:00:33]} 5. cxd5 {[%emt 0:01:03]} cxd5 {[%emt 0:00:20]} 6. Bg5 {[%emt 0:02:33]} Nc6 {[%emt 0:01:29]} 7. e3 {[%emt 0:00:17]} Be7 {[%emt 0:00:41]} 8. Bd3 {[%emt 0:00:11]} h6 {[%emt 0:01:49]} 9. Bh4 {[%emt 0:00:47]} Qb6 {[%emt 0:03:04]} 10. O-O {[%emt 0:05:41]} Bd7 {[%emt 0:03:10]} 11. a3 {[%emt 0:09:20]} Nh5 {[%emt 0:15:44]} 12. Na4 {[%emt 0:13:45]} Qd8 {[%emt 0:10:48]} 13. Bxe7 {[%emt 0:00:41]} Nxe7 {[%emt 0:05:10]} 14. Nc5 {[%emt 0:04:33]} Bc6 {[%emt 0:04:10]} 15. Ne5 {[%emt 0:04:55]} Nf6 {[%emt 0:01:35]} 16. b4 {[%emt 0:01:31]} Rb8 {[%emt 0:07:40]} 17. Rc1 {[%emt 0:07:08]} O-O {[%emt 0:01:42]} 18. Nxc6 {[%emt 0:04:27]} bxc6 {[%emt 0:00:15]} 19. Nb3 {[%emt 0:00:49]} Qd6 {[%emt 0:06:55]} 20. Na5 {[%emt 0:05:50]} Nd7 {[%emt 0:02:10]} 21. Bc2 {[%emt 0:07:15]} e5 {[%emt 0:07:49]} 22. Ba4 {[%emt 0:02:40]} Rfc8 {[%emt 0:03:56]} 23. dxe5 {[%emt 0:17:53]} Nxe5 {[%emt 0:02:14]} 24. Qd4 {[%emt 0:05:14]} Nd7 {[%emt 0:08:24]} 25. Qd3 {[%emt 0:04:16]} Ne5 {[%emt 0:03:46]} 26. Qc3 {[%emt 0:02:07]} Nd7 {[%emt 0:06:00]} 27. Nb3 {[%emt 0:04:42]} Nb6 {[%emt 0:05:13]} 28. Nc5 {[%emt 0:00:02]} Ng6 {[%emt 0:00:58]} 29. Rfd1 {[%emt 0:02:56]} Nf8 {[%emt 0:03:51]} 30. Bc2 {[%emt 0:00:27]} Nbd7 {[%emt 0:01:56]} 31. Bf5 {[%emt 0:01:09]} g6 {[%emt 0:02:20]} 32. Bg4 {[%emt 0:00:39]} f5 {[%emt 0:00:54]} 33. Be2 {[%emt 0:00:06]} Nxc5 {[%emt 0:00:17]} 34. Qxc5 {[%emt 0:00:02]} Qxc5 {[%emt 0:00:31]} 35. Rxc5 {[%emt 0:00:02]} Ne6 {[%emt 0:00:55]} 36. Ra5 {[%emt 0:02:11]} Rc7 {[%emt 0:00:07]} 37. g3 {[%emt 0:00:22]} Kf7 {[%emt 0:00:18]} 38. Rc1 {[%emt 0:00:55]} Ke7 {[%emt 0:00:35]} 39. h4 {[%emt 0:00:47]} Kd6 {[%emt 0:00:30]} 40. Kf1 {[%emt 0:00:44]} g5 {[%emt 0:00:31]} 41. hxg5 {[%emt 0:19:05]} hxg5 {[%emt 0:00:24]} 42. Kg2 {[%emt 0:00:52]} Rh8 {[%emt 0:14:09]} 43. Rh1 {[%emt 0:00:19]} Rxh1 {[%emt 0:01:28]} 44. Kxh1 {[%emt 0:00:03]} f4 {[%emt 0:04:18]} 45. Bg4 {[%emt 0:07:06]} fxe3 {[%emt 0:02:31]} 46. fxe3 {[%emt 0:00:13]} Ke5 {[%emt 0:01:49]} 47. Kg2 {[%emt 0:05:57]} Nd8 {[%emt 0:01:41]} 48. Kf3 {[%emt 0:07:08]} Nf7 {[%emt 0:01:23]} 49. Bh5 {[%emt 0:05:05]} Nd6 {[%emt 0:01:51]} 50. Bg6 {[%emt 0:00:14]} Nc4 {[%emt 0:04:07]} 51. Ra6 {[%emt 0:00:21]} Kd6 {[%emt 0:06:19]} 52. Bd3 {[%emt 0:04:47]} Ne5+ {[%emt 0:02:21]} 1/2-1/2

[Event "4NCL 2023-2024"]
[Site "Daventry"]
[Date "2024.05.05"]
[Round "10.1"]
[White "Adams, Michael"]
[Black "Lupulescu, Constantin"]
[Result "1/2-1/2"]
[ECO "C00"]
[WhiteElo "2677"]
[BlackElo "2588"]
[Annotator "TA"]
[PlyCount "61"]
[EventDate "2023.11.11"]
[EventType "team-tourn"]
[EventCountry "ENG"]
[SourceTitle "playchess.com"]
[Source "ChessBase"]
[SourceQuality "1"]
[TimeControl "40/6000+30:3000+30"]

{[%evp 11,61,-16,-6,0,0,0,0,0,7,0,22,0,0,0,0,12,8,5,10,9,0,6,26,30,41,29,64,51,48,67,62,31,19,8,13,20,13,7,5,7,5,10,10,13,9,6,10,10,18,0,32,0]} 1. e4 {[%emt 0:00:04]} c5 {[%emt 0:00:03]} 2. Nf3 {[%emt 0:00:07]} e6 {[%emt 0:00:05]} 3. g3 {[%emt 0:00:05]} Nc6 {[%emt 0:00:12]} 4. Bg2 {[%emt 0:00:07]} Nf6 {[%emt 0:00:08]} 5. d3 {[%emt 0:00:07]} d5 {[%emt 0:00:26]} 6. Qe2 {[%emt 0:00:29]} Be7 {[%emt 0:00:56]} 7. a4 {[%emt 0:00:31]} b6 {[%emt 0:08:29]} 8. O-O {[%emt 0:06:02]} Bb7 {[%emt 0:08:36]} 9. Re1 {[%emt 0:01:36] The position is equal.} a6 {[%emt 0:12:52]} 10. h4 {[%emt 0:10:51]} b5 {[%emt 0:08:57]} 11. axb5 {[%emt 0:15:33]} axb5 {[%emt 0:00:08]} 12. Rxa8 {[%emt 0:00:03]} Qxa8 {[%emt 0:07:42]} 13. Nc3 {[%emt 0:07:17]} dxe4 {[%emt 0:01:48]} 14. Nxe4 {[%emt 0:01:56]} O-O {[%emt 0:01:38]} 15. Bg5 {[%emt 0:00:10]} Nxe4 {[%emt 0:21:43]} 16. dxe4 {[%emt 0:00:13]} Bxg5 {[%emt 0:00:36]} 17. hxg5 {[%emt 0:00:39]} Qa5 {[%emt 0:00:29]} 18. Rd1 {[%emt 0:12:01]} Nd4 {[%emt 0:11:46]} 19. Nxd4 {[%emt 0:03:59]} cxd4 {[%emt 0:00:29]} 20. Rxd4 {[%emt 0:04:52]} Qa1+ {[%emt 0:00:11]} 21. Qd1 {[%emt 0:03:41]} Qxb2 {[%emt 0:00:05]} 22. Rd8 {[%emt 0:00:42] [#] White wants to mate with Rxf8+.} g6 {[%emt 0:03:48]} 23. Rxf8+ {[%emt 0:08:51]} Kxf8 $11 {[%emt 0:00:18][%mdl 4096] Endgame. KQB-KQB} 24. Qd7 {[%emt 0:00:40]} Qa1+ {[%emt 0:01:15]} 25. Kh2 {[%emt 0:00:12]} Qa6 {[%emt 0:01:05]} 26. Qd8+ {[%emt 0:00:55]} Kg7 {[%emt 0:00:08]} 27. Qd4+ {[%emt 0:03:18]} Kg8 {[%emt 0:00:36]} 28. c3 {[%emt 0:07:37]} Bc6 {[%emt 0:01:01]} 29. Qd8+ {[%emt 0:03:40]} Kg7 {[%emt 0:00:05]} 30. Qd4+ {[%emt 0:00:03]} Kg8 {[%emt 0:00:02]} 31. Qd8+ {[%emt 0:01:28] Weighted Error Value: White=0.05 (flawless) /Black=0.05 (flawless) .  Inaccurate:     	White=2     	Black=1      OK:         	White=12    	Black=6      Best:        	---       	Black=6} 1/2-1/2

[Event "4NCL 2023-2024"]
[Site "Daventry"]
[Date "2024.05.05"]
[Round "10.2"]
[White "Shirov, Alexei"]
[Black "Murphy, Conor E"]
[Result "1/2-1/2"]
[ECO "C77"]
[WhiteElo "2668"]
[BlackElo "2478"]
[Annotator "TA"]
[PlyCount "68"]
[EventDate "2023.11.11"]
[EventType "team-tourn"]
[EventCountry "ENG"]
[SourceTitle "playchess.com"]
[Source "ChessBase"]
[SourceQuality "1"]
[TimeControl "40/6000+30:3000+30"]

{[%evp 12,68,17,12,13,0,16,0,0,0,0,0,0,0,4,8,0,-3,0,-36,-33,-35,-59,-36,-39,-47,-62,-142,-31,-25,-31,-30,-30,-20,-22,-35,0,-22,0,-9,-10,-13,-15,-35,-13,-9,-6,-7,0,0,0,0,0,0,0,0,0,0,0]} 1. e4 {[%emt 0:00:03]} e5 {[%emt 0:03:52]} 2. Nf3 {[%emt 0:00:06]} Nc6 {[%emt 0:00:20]} 3. Bb5 {[%emt 0:00:06]} a6 {[%emt 0:00:20]} 4. Ba4 {[%emt 0:00:07]} Nf6 {[%emt 0:00:08]} 5. d3 {[%emt 0:02:26]} b5 {[%emt 0:00:30]} 6. Bb3 {[%emt 0:00:07]} Bc5 {[%emt 0:00:27]} 7. Nc3 {[%emt 0:02:44]} h6 {[%emt 0:02:19]} 8. a4 {[%emt 0:10:04]} Rb8 {[%emt 0:03:41]} 9. axb5 {[%emt 0:00:59]} axb5 {[%emt 0:00:13]} 10. Be3 {[%emt 0:02:40]} Bxe3 {[%emt 0:06:19]} 11. fxe3 {[%emt 0:00:06]} d6 {[%emt 0:00:29]} 12. O-O {[%emt 0:08:55]} Be6 {[%emt 0:06:25]} 13. Bxe6 {[%emt 0:27:38]} fxe6 {[%emt 0:00:33]} 14. Ra6 {[%emt 0:00:04]} Qd7 {[%emt 0:13:11]} 15. d4 {[%emt 0:01:50]} O-O $1 {[%emt 0:13:15]} 16. d5 {[%emt 0:37:02]} Ne7 {[%emt 0:07:20] [#] Strongly threatening ...b4.} 17. dxe6 $1 {[%emt 0:02:06]} Qxe6 {[%emt 0:00:39]} 18. Qd3 {[%emt 0:00:08]} b4 {[%emt 0:11:02]} 19. Na4 {[%emt 0:00:35]} (19. Nd1 $15) 19... Kh7 {[%emt 0:03:15]} (19... Qg4 $17 20. Qc4+ Kh8 21. Qxc7 Qxe4) 20. Nc5 {[%emt 0:02:21]} Qc8 {[%emt 0:03:53]} (20... dxc5 $2 {perishes.} 21. Rxe6 Ng6 22. Qc4 $18 (22. Nxe5 Nxe5 23. Rxe5 Rfd8 $18)) 21. Nb3 {[%emt 0:00:11]} Ra8 {[%emt 0:01:55]} 22. Rxa8 {[%emt 0:03:56]} Qxa8 {[%emt 0:00:05]} 23. Nfd2 {[%emt 0:00:11]} Ng4 {[%emt 0:05:52]} 24. Rf3 {[%emt 0:02:36]} Qe8 {[%emt 0:02:39]} 25. h3 {[%emt 0:00:55]} Rxf3 {[%emt 0:00:30]} 26. gxf3 {[%emt 0:00:49]} Nf6 {[%emt 0:00:08]} 27. Kh2 {[%emt 0:00:08]} Qh5 {[%emt 0:01:55]} 28. Qf1 {[%emt 0:01:45] The position is equal.} Ng6 {[%emt 0:01:31]} 29. Nc1 {[%emt 0:01:38]} Nh4 {[%emt 0:06:39]} 30. Nd3 {[%emt 0:00:23]} c5 {[%emt 0:03:36]} 31. Ne1 {[%emt 0:00:35]} Qg5 {[%emt 0:02:00]} 32. Qg1 {[%emt 0:00:23]} Qh5 {[%emt 0:00:11]} 33. Qf1 {[%emt 0:00:32]} Qg5 {[%emt 0:04:04]} 34. Qg1 {[%emt 0:00:07]} Qh5 {[%emt 0:00:04] Weighted Error Value: White=0.08 (flawless) /Black=0.12 (very precise) .  Mistake:       	White=1     	Black=1      Inaccurate:     	White=1     	Black=1      OK:         	White=9     	Black=6      Strong:       	White=1     	Black=1} 1/2-1/2

[Event "4NCL 2023-2024"]
[Site "Daventry"]
[Date "2024.05.05"]
[Round "10.3"]
[White "Harvey, Marcus R"]
[Black "Svane, Rasmus"]
[Result "1/2-1/2"]
[ECO "D36"]
[WhiteElo "2484"]
[BlackElo "2635"]
[Annotator "TA"]
[PlyCount "113"]
[EventDate "2023.11.11"]
[EventType "team-tourn"]
[EventCountry "ENG"]
[SourceTitle "playchess.com"]
[Source "ChessBase"]
[SourceQuality "1"]
[TimeControl "40/6000+30:3000+30"]

{[%evp 18,113,23,11,14,-17,-9,-17,-21,-24,-17,-19,0,0,7,0,27,0,0,0,0,-17,0,-13,15,0,-2,0,0,0,0,-13,-10,-8,0,0,0,-13,0,0,0,0,0,0,0,0,0,0,0,0,0,0,12,0,0,0,0,0,0,0,6,6,13,0,0,0,0,0,0,0,0,0,0,0,0,0,1,0,0,0,0,0,0,0,0,0,0,0,0,0,0,0,0,0,0,0,0,0]} 1. c4 {[%emt 0:00:35]} e6 {[%emt 0:00:10]} 2. Nc3 {[%emt 0:00:04]} d5 {[%emt 0:04:27]} 3. d4 {[%emt 0:00:06]} Nf6 {[%emt 0:01:49]} 4. cxd5 {[%emt 0:00:18]} exd5 {[%emt 0:00:25]} 5. Bg5 {[%emt 0:00:59]} c6 {[%emt 0:00:38]} 6. e3 {[%emt 0:02:28]} h6 {[%emt 0:00:28]} 7. Bh4 {[%emt 0:00:13]} Be7 {[%emt 0:02:00]} 8. Qc2 {[%emt 0:03:15]} O-O {[%emt 0:08:16]} 9. Bd3 {[%emt 0:00:52]} Re8 {[%emt 0:01:37]} 10. Nf3 {[%emt 0:10:29]} Ne4 {[%emt 0:12:17]} 11. Bxe4 {[%emt 0:03:28] [#] Bh7+ would now be deadly.} (11. Bxe7 {simplifies} Qxe7 12. Bxe4 dxe4 13. Nd2) 11... Bxh4 {[%emt 0:03:20]} 12. Bh7+ {[%emt 0:01:21]} Kh8 {[%emt 0:05:14]} 13. g3 {[%emt 0:09:22]} Bf6 {[%emt 0:01:35]} 14. Bf5 {[%emt 0:00:41]} g6 {[%emt 0:07:41]} 15. Bxc8 {[%emt 0:01:52]} Qxc8 {[%emt 0:00:06]} 16. O-O {[%emt 0:05:06]} Bg7 {[%emt 0:16:23]} 17. Kg2 {[%emt 0:07:45]} Nd7 {[%emt 0:01:26] The position is equal.} 18. Rfc1 {[%emt 0:02:14]} Nb6 {[%emt 0:06:13]} 19. Rab1 {[%emt 0:03:04]} Qe6 {[%emt 0:06:04]} 20. Nd2 {[%emt 0:08:45]} Rac8 {[%emt 0:04:47]} 21. Na4 {[%emt 0:01:57]} Nxa4 {[%emt 0:02:57]} 22. Qxa4 {[%emt 0:00:10]} a6 {[%emt 0:00:36]} 23. b4 {[%emt 0:05:13]} f5 {[%emt 0:02:44]} 24. Re1 {[%emt 0:09:07]} g5 {[%emt 0:05:11]} 25. Qc2 {[%emt 0:01:42]} Qf7 {[%emt 0:03:57]} 26. Nf3 {[%emt 0:03:22]} Qe6 {[%emt 0:03:16]} 27. a4 {[%emt 0:07:38]} Qe4 {[%emt 0:01:37]} 28. Qxe4 {[%emt 0:00:20]} fxe4 {[%emt 0:00:07]} 29. Nd2 {[%emt 0:02:26]} Bf8 {[%emt 0:00:39]} 30. g4 {[%emt 0:01:48]} Kg7 {[%emt 0:01:25][%cal Oh6h5]} 31. Nf1 {[%emt 0:04:10]} Bd6 {[%emt 0:00:56]} 32. Rec1 {[%emt 0:02:12]} Kg6 {[%emt 0:01:48]} 33. Ng3 {[%emt 0:02:42]} Bxg3 {[%emt 0:00:27]} 34. hxg3 $11 {[%emt 0:00:35][%mdl 4096] Endgame. KRR-KRR} Re6 {[%emt 0:02:34]} 35. Rc2 {[%emt 0:02:57]} Rf8 {[%emt 0:01:31]} 36. Ra1 {[%emt 0:01:25]} Ra8 {[%emt 0:01:14]} 37. Rb1 {[%emt 0:02:03]} Rd6 {[%emt 0:00:32]} 38. Rc5 {[%emt 0:01:08]} Rf6 {[%emt 0:00:57]} 39. Rb2 {[%emt 0:00:25]} h5 {[%emt 0:00:40]} 40. gxh5+ {[%emt 0:01:06]} Kxh5 {[%emt 0:00:05]} 41. Rc1 {[%emt 0:50:13]} Kg6 {[%emt 0:02:54]} 42. Rh1 {[%emt 0:00:00]} Rf7 {[%emt 0:08:02]} 43. g4 {[%emt 0:00:00]} Rh7 {[%emt 0:02:49]} 44. Rxh7 {[%emt 0:00:00]} Kxh7 {[%emt 0:00:06] KR-KR} 45. Rb1 {[%emt 0:00:00]} Kg6 {[%emt 0:06:23]} 46. Kg3 {[%emt 0:00:00]} Kf6 {[%emt 0:06:39]} 47. a5 {[%emt 0:00:00]} Rh8 {[%emt 0:02:18]} 48. Rf1 {[%emt 0:00:00]} Ke6 {[%emt 0:03:55]} 49. Kg2 {[%emt 0:00:00]} Rh4 {[%emt 0:02:31]} 50. Kg3 {[%emt 0:00:00]} Rh8 {[%emt 0:01:50]} 51. f3 {[%emt 0:00:00]} exf3 {[%emt 0:01:27]} 52. Rxf3 {[%emt 0:00:00]} Rh1 {[%emt 0:00:38]} 53. Kg2 {[%emt 0:00:00]} Rh4 {[%emt 0:05:01]} 54. Kg3 {[%emt 0:00:00]} Rh1 {[%emt 0:00:26]} 55. Kg2 {[%emt 0:00:00]} Rh4 {[%emt 0:03:19]} 56. Kg3 {[%emt 0:00:00]} Rh1 {[%emt 0:00:07]} 57. Kg2 {[%emt 0:13:24] Not much happened in this game.   Weighted Error Value: White=0.04 (flawless) /Black=0.03 (flawless) .  Inaccurate:     	White=2     	Black=3      OK:         	White=23    	Black=20     Best:        	---       	Black=1} 1/2-1/2